bitfinex/quotes_BTCUSD_20251015
["timestamp","ask_amount","ask_price","bid_price","bid_amount"]
[1760502658698,0.18666665,112500.0,112490.0,0.01777935]
[1760502659117,0.18666665,112500.0,112490.0,0.01677935]
[1760502659551,0.56299178,112500.0,112490.0,0.01677935]
[1760502659804,0.19565863,112500.0,112490.0,0.01677935]
[1760502660223,0.18666665,112500.0,112490.0,0.01677935]
[1760502660637,0.17777777,112500.0,112490.0,0.57089806]
[1760502660805,0.17777777,112500.0,112490.0,0.55411871]
[1760502661009,0.17777777,112500.0,112490.0,0.17779358]
[1760502661189,0.18685007,112500.0,112490.0,0.01777935]
[1760502661565,0.18685007,112500.0,112490.0,0.02161535]
[1760502662171,0.5631752,112500.0,112490.0,0.003836]
[1760502662604,0.5541029,112500.0,112490.0,0.003836]
[1760502662817,0.5541029,112500.0,112490.0,0.02161535]
[1760502664564,0.18665998,112500.0,112490.0,0.02161535]
[1760502664781,0.17777777,112500.0,112490.0,0.02161535]
[1760502664987,0.17777777,112500.0,112490.0,0.19940893]
[1760502665621,0.17777777,112500.0,112490.0,0.18162958]
[1760502670764,0.17777777,112500.0,112490.0,0.003836]
[1760502670977,0.17777777,112500.0,112490.0,0.02161535]
[1760502672268,0.5541029,112500.0,112490.0,0.02161535]
[1760502672475,0.5541029,112500.0,112490.0,0.003836]
[1760502672678,0.17777777,112500.0,112490.0,0.003836]
[1760502672880,0.5541029,112500.0,112490.0,0.003836]
[1760502673108,0.17777777,112500.0,112490.0,0.003836]
[1760502673331,0.5541029,112500.0,112490.0,0.003836]
[1760502675168,0.5541029,112500.0,112490.0,0.02161535]
[1760502675872,0.5541029,112500.0,112490.0,0.003836]
[1760502675873,1.64675316,112500.0,112490.0,0.003836]
[1760502676099,1.36114094,112500.0,112490.0,0.003836]
[1760502676336,0.53171958,112500.0,112490.0,0.003836]
[1760502676653,1.28436984,112500.0,112490.0,0.003836]
[1760502677465,0.90803953,112500.0,112490.0,0.003836]
[1760502678090,0.90903953,112500.0,112490.0,0.003836]
[1760502678730,0.19271958,112500.0,112490.0,0.003836]
[1760502678941,0.19271958,112500.0,112490.0,0.18162958]
[1760502679563,0.19171958,112500.0,112490.0,0.18162958]
[1760502679758,0.19171958,112500.0,112490.0,0.003836]
[1760502679975,0.17777777,112500.0,112490.0,0.19940893]
[1760502680184,0.17777777,112500.0,112490.0,0.18162958]
[1760502680399,0.56318409,112510.0,112490.0,0.003836]
[1760502680610,0.17777777,112500.0,112490.0,0.01777935]
[1760502680813,0.17777777,112500.0,112490.0,0.19557293]
[1760502681019,0.18686414,112510.0,112490.0,0.17779358]
[1760502681238,0.52686414,112510.0,112500.0,0.01777777]
[1760502681684,0.17779358,112490.0,112480.0,0.17779837]
[1760502681888,0.17779358,112490.0,112480.0,0.17780938]
[1760502682060,0.56299561,112500.0,112480.0,0.17780938]
[1760502682274,0.18667566,112500.0,112490.0,0.01777935]
[1760502685572,0.53170665,112510.0,112490.0,0.19557293]
[1760502685775,0.54003952,112510.0,112500.0,0.00325874]
[1760502685974,0.93302431,112510.0,112500.0,0.02103651]
[1760502686411,0.942154,112510.0,112500.0,0.00325874]
[1760502688405,0.56583405,112510.0,112500.0,0.00325874]
[1760502690302,0.03893858,112510.0,112500.0,0.18103651]
[1760502690525,0.17774764,112520.0,112500.0,0.55735646]
[1760502690741,0.00883905,112520.0,112510.0,0.19553816]
[1760502690991,0.18658522,112520.0,112510.0,0.17776197]
[1760502691216,0.17776197,112510.0,112500.0,0.18103646]
[1760502691431,0.17776197,112510.0,112500.0,0.18103651]
[1760502691651,0.17776197,112510.0,112500.0,0.00425874]
[1760502691652,0.56241863,112510.0,112500.0,0.00425874]
[1760502691871,0.56241863,112510.0,112500.0,0.00325874]
[1760502692307,0.91909202,112510.0,112500.0,0.00325874]
[1760502692529,0.91909202,112510.0,112470.0,0.0717521]
[1760502692530,0.17780938,112480.0,112470.0,0.0717521]
[1760502692757,0.56246826,112480.0,112470.0,0.0717521]
[1760502692966,0.56246826,112480.0,112460.0,0.19562511]
[1760502692967,0.58803728,112480.0,112460.0,0.19562511]
[1760502693190,0.17782519,112470.0,112460.0,0.17784101]
[1760502693619,0.18670152,112480.0,112460.0,0.17789092]
[1760502693837,0.18670152,112480.0,112470.0,0.01778251]
[1760502695211,0.19175082,112490.0,112470.0,0.01778251]
[1760502695212,0.34,112490.0,112470.0,0.01778251]
[1760502695431,0.17780938,112480.0,112470.0,0.01778251]
[1760502695643,0.16091859,112500.0,112480.0,0.17780938]
[1760502695993,0.16091859,112500.0,112470.0,0.17781923]
[1760502695994,0.17779358,112490.0,112470.0,0.17781923]
[1760502696206,0.17779358,112490.0,112480.0,0.01778093]
[1760502696934,0.17779358,112490.0,112460.0,0.17789092]
[1760502696935,0.17780938,112480.0,112460.0,0.17789092]
[1760502697134,0.18668325,112490.0,112470.0,0.19369027]
[1760502697337,0.18668325,112490.0,112470.0,0.17782519]
[1760502698161,0.18668325,112490.0,112470.0,0.17955683]
[1760502698535,0.18668325,112490.0,112480.0,0.17780938]
[1760502698856,0.18668325,112490.0,112470.0,0.17782519]
[1760502699439,0.16091859,112500.0,112480.0,0.19559031]
[1760502699440,0.17486102,112500.0,112480.0,0.19559031]
[1760502699666,0.20259491,112500.0,112490.0,0.17779358]
[1760502699866,0.1917202,112500.0,112490.0,0.17779358]
[1760502700042,0.17776197,112510.0,112490.0,0.17779358]
[1760502700217,0.52609173,112510.0,112490.0,0.17779358]
[1760502700824,0.18609173,112510.0,112490.0,0.17779358]
[1760502701026,0.17776197,112510.0,112500.0,0.01512337]
[1760502701661,0.18663347,112520.0,112500.0,0.19290114]
[1760502701837,0.18663347,112520.0,112490.0,0.17779358]
[1760502701838,0.18030607,112510.0,112490.0,0.17779358]
[1760502702038,0.17776197,112510.0,112500.0,0.01777777]
[1760502702249,0.17781186,112510.0,112500.0,0.01777777]
[1760502703803,0.17781186,112510.0,112500.0,0.01877777]
[1760502704853,0.83504967,112510.0,112500.0,0.001]
[1760502705206,0.17781186,112510.0,112500.0,0.001]
[1760502706134,0.17781186,112510.0,112490.0,0.1777928]
[1760502706365,0.17777777,112500.0,112490.0,0.1777928]
[1760502706769,0.17777777,112500.0,112480.0,0.18669796]
[1760502707175,0.18669995,112510.0,112490.0,0.19557293]
[1760502707381,0.18669995,112510.0,112490.0,0.17779358]
[1760502707745,0.17777777,112500.0,112490.0,0.17779358]
[1760502708373,0.18669995,112510.0,112490.0,0.17779358]
[1760502709224,0.17777777,112500.0,112490.0,0.17837069]
[1760502710702,0.18669995,112510.0,112500.0,0.17777777]
[1760502713060,0.18669995,112510.0,112490.0,0.17837069]
[1760502713987,0.18669995,112510.0,112500.0,0.01777777]
[1760502714389,0.18669995,112510.0,112490.0,0.17837069]
[1760502714808,0.18669995,112510.0,112500.0,0.19555554]
[1760502714984,0.18669995,112510.0,112500.0,0.17777777]
[1760502715176,0.17781186,112510.0,112500.0,0.17777777]
[1760502717330,4.989e-05,112510.0,112500.0,0.17777777]
[1760502717520,0.55039585,112530.0,112500.0,0.17777777]
[1760502717862,0.55039585,112530.0,112510.0,0.01777619]
[1760502717863,0.18666284,112520.0,112510.0,0.01777619]
[1760502723833,0.17774617,112520.0,112510.0,0.19553816]
[1760502724021,0.17774617,112520.0,112500.0,0.17777777]
[1760502724259,0.17774617,112520.0,112510.0,0.01608599]
[1760502726110,0.17774617,112520.0,112510.0,0.01708599]
[1760502731431,0.17774617,112520.0,112510.0,0.19484796]
[1760502731764,0.17774617,112520.0,112510.0,0.17876197]
[1760502732509,0.17774617,112520.0,112510.0,0.001]
[1760502732793,0.17774617,112520.0,112510.0,0.01877619]
[1760502733429,0.17774617,112520.0,112510.0,0.19653816]
[1760502733612,4.99e-05,112530.0,112520.0,0.17774617]
[1760502734025,0.17778028,112530.0,112520.0,0.17774617]
[1760502736683,0.17778028,112530.0,112510.0,0.55395101]
[1760502736860,0.17774617,112520.0,112510.0,0.17776197]
[1760502738245,0.17774617,112520.0,112510.0,0.17876197]
[1760502738673,0.17774617,112520.0,112510.0,0.001]
[1760502738674,0.55393521,112520.0,112510.0,0.001]
[1760502739390,0.93016497,112520.0,112510.0,0.001]
[1760502740749,0.17776197,112510.0,112500.0,0.01777777]
[1760502740983,0.55397137,112510.0,112500.0,0.01777777]
[1760502742102,0.17776197,112510.0,112500.0,0.01777777]
[1760502742312,1.30573158,112510.0,112500.0,0.01877777]
[1760502742533,1.29517542,112510.0,112500.0,0.001]
[1760502742770,1.3313577,112510.0,112500.0,0.001]
[1760502742963,0.17777777,112500.0,112490.0,0.00057711]
[1760502743230,1.33140062,112500.0,112490.0,0.00057711]
[1760502743442,0.6305403,112500.0,112490.0,0.00057711]
[1760502744950,0.6315403,112500.0,112490.0,0.00057711]
[1760502746381,0.62320875,112500.0,112490.0,0.00057711]
[1760502747310,0.60654565,112500.0,112490.0,0.00057711]
[1760502751185,1.10654565,112500.0,112490.0,0.00057711]
[1760502752004,0.17780938,112480.0,112470.0,0.0717521]
[1760502752206,0.60557726,112480.0,112470.0,0.0717521]
[1760502752424,0.1778405,112470.0,112450.0,0.25849936]
[1760502752605,0.60560838,112470.0,112450.0,0.25849936]
[1760502752851,0.1778405,112470.0,112450.0,0.25849936]
[1760502753033,0.1778405,112470.0,112450.0,0.18674726]
[1760502753229,0.1778405,112470.0,112460.0,0.0177841]
[1760502754660,0.1778405,112470.0,112460.0,0.0187841]
[1760502756839,0.1778405,112470.0,112460.0,0.001]
[1760502757676,0.60560838,112470.0,112460.0,0.00273187]
[1760502759611,0.60560838,112470.0,112460.0,0.00173187]
[1760502762842,0.94560838,112470.0,112460.0,0.00173187]
[1760502763447,1.27095984,112470.0,112460.0,0.00173187]
[1760502763759,0.89440017,112470.0,112460.0,0.00173187]
[1760502763948,0.89440017,112470.0,112460.0,0.00183187]
[1760502764771,0.90834512,112470.0,112460.0,0.00183187]
[1760502765978,0.53178545,112470.0,112460.0,0.00183187]
[1760502766106,0.90834512,112470.0,112460.0,0.00183187]
[1760502768207,0.92498095,112470.0,112460.0,0.00183187]
[1760502769706,1.42498095,112470.0,112460.0,0.00183187]
[1760502769930,0.70842128,112470.0,112460.0,0.37839154]
[1760502770065,0.6778405,112470.0,112460.0,0.37839154]
[1760502770270,1.05440017,112470.0,112460.0,0.00183187]
[1760502770492,1.0710496,112470.0,112460.0,0.00183187]
[1760502771884,0.1778405,112470.0,112460.0,0.00183187]
[1760502772030,0.19449995,112470.0,112460.0,0.00183187]
[1760502773481,0.57939653,112470.0,112460.0,0.00183187]
[1760502774617,0.93334149,112470.0,112460.0,0.00183187]
[1760502775039,0.91939653,112470.0,112460.0,0.00183187]
[1760502775768,0.54283686,112470.0,112460.0,0.00183187]
[1760502775911,0.91939653,112470.0,112460.0,0.00183187]
[1760502776433,0.9194136,112470.0,112460.0,0.00183187]
[1760502776615,0.54285393,112470.0,112460.0,0.00183187]
[1760502776815,0.9194136,112470.0,112460.0,0.00183187]
[1760502781079,0.20285393,112470.0,112460.0,0.00183187]
[1760502781278,0.19451612,112470.0,112460.0,0.00183187]
[1760502781564,0.19451612,112470.0,112460.0,0.57401665]
[1760502781799,0.19451612,112470.0,112460.0,0.55623255]
[1760502782148,0.19450532,112470.0,112460.0,0.55623255]
[1760502782385,0.17782519,112470.0,112460.0,0.55623255]
[1760502782771,0.17782519,112470.0,112460.0,0.55723255]
[1760502784534,0.17782519,112470.0,112460.0,0.18067288]
[1760502784954,0.17782519,112470.0,112460.0,0.00283187]
[1760502785245,0.17782519,112470.0,112460.0,0.02061597]
[1760502785614,0.17782519,112470.0,112460.0,0.00283187]
[1760502785845,0.55438486,112470.0,112460.0,0.00283187]
[1760502786001,0.5710649,112470.0,112460.0,0.00283187]
[1760502787694,0.57940566,112470.0,112460.0,0.00283187]
[1760502788494,0.91940566,112470.0,112460.0,0.00283187]
[1760502788721,1.29596533,112470.0,112460.0,0.00283187]
[1760502789341,1.31518408,112470.0,112460.0,0.00283187]
[1760502789502,1.32913005,112470.0,112460.0,0.00283187]
[1760502789914,0.95257038,112470.0,112460.0,0.00283187]
[1760502790119,0.95257038,112470.0,112460.0,0.00183187]
[1760502791035,1.04225246,112470.0,112460.0,0.00183187]
[1760502791245,1.41881213,112470.0,112460.0,0.00183187]
[1760502791945,1.40486616,112470.0,112460.0,0.00183187]
[1760502792377,1.31518408,112470.0,112460.0,0.00183187]
[1760502793626,0.51784101,112460.0,112450.0,4.989e-05]
[1760502793844,1.29598115,112460.0,112450.0,4.989e-05]
[1760502794080,1.29598115,112460.0,112450.0,0.0006273]
[1760502794932,1.30992809,112460.0,112450.0,0.0006273]
[1760502795137,1.39961017,112460.0,112450.0,0.0006273]
[1760502795341,0.55680875,112460.0,112450.0,0.0006273]
[1760502795542,1.30992809,112460.0,112450.0,0.0006273]
[1760502795772,1.80992809,112460.0,112450.0,0.0006273]
[1760502796990,1.83668665,112460.0,112450.0,0.0006273]
[1760502797205,1.87286893,112460.0,112450.0,0.0006273]
[1760502797599,1.96255101,112460.0,112450.0,0.0006273]
[1760502798157,2.33911068,112460.0,112450.0,0.0006273]
[1760502798386,2.35830313,112460.0,112450.0,0.0006273]
[1760502799322,2.35929789,112460.0,112450.0,0.0006273]
[1760502799521,1.60637927,112460.0,112450.0,0.0006273]
[1760502799752,1.22961888,112460.0,112450.0,0.0006273]
[1760502800004,1.60637927,112460.0,112450.0,0.0006273]
[1760502800474,0.17790428,112420.0,112410.0,0.0717521]
[1760502800719,0.17790428,112420.0,112410.0,0.26751413]
[1760502800887,0.17790428,112420.0,112410.0,0.24972212]
[1760502801090,0.17790428,112420.0,112410.0,0.17797002]
[1760502802200,0.17790428,112420.0,112410.0,0.17897002]
[1760502802916,0.67790428,112420.0,112410.0,0.17897002]
[1760502803921,0.61211699,112420.0,112410.0,0.17897002]
[1760502804124,0.67790399,112420.0,112410.0,0.17897002]
[1760502806097,0.67790399,112420.0,112410.0,0.18128062]
[1760502806779,0.67790399,112420.0,112410.0,0.00336051]
[1760502807324,0.17790428,112420.0,112410.0,0.00336051]
[1760502807565,0.17790428,112420.0,112410.0,0.02115252]
[1760502809250,0.17790428,112420.0,112410.0,0.00336051]
[1760502810936,0.97083188,112420.0,112410.0,0.00336051]
[1760502811339,0.9214307,112420.0,112410.0,0.00336051]
[1760502812043,0.9214307,112420.0,112410.0,0.00236051]
[1760502812510,1.35099713,112420.0,112410.0,0.00236051]
[1760502813379,0.97423674,112420.0,112410.0,0.00236051]
[1760502813811,0.97523674,112420.0,112410.0,0.00236051]
[1760502814236,1.02363715,112420.0,112410.0,0.00236051]
[1760502814453,0.64687676,112420.0,112410.0,0.00236051]
[1760502814677,1.40039754,112420.0,112410.0,0.00236051]
[1760502815975,1.02363715,112420.0,112410.0,0.00236051]
[1760502816224,0.98918968,112420.0,112410.0,0.00236051]
[1760502817121,1.48918968,112420.0,112410.0,0.00236051]
[1760502817782,1.11242929,112420.0,112410.0,0.00236051]
[1760502817971,1.86595007,112420.0,112410.0,0.00236051]
[1760502818899,1.48918968,112420.0,112410.0,0.00236051]
[1760502820431,1.86595007,112420.0,112410.0,0.00236051]
[1760502820810,1.89183997,112420.0,112410.0,0.00236051]
[1760502820954,1.82265343,112420.0,112410.0,0.00236051]
[1760502821386,1.82265667,112420.0,112410.0,0.00236051]
[1760502821806,1.44589628,112420.0,112410.0,0.00236051]
[1760502823319,1.45421319,112420.0,112410.0,0.00236051]
[1760502824138,1.4733773,112420.0,112410.0,0.00236051]
[1760502825559,1.93981977,112420.0,112410.0,0.00236051]
[1760502826605,1.93981977,112420.0,112410.0,1e-08]
[1760502829399,1.4733773,112420.0,112410.0,1e-08]
[1760502830279,1.85013769,112420.0,112410.0,1e-08]
[1760502830890,1.87408242,112420.0,112410.0,1e-08]
[1760502832441,1.86576551,112420.0,112410.0,1e-08]
[1760502832694,1.89775354,112420.0,112410.0,1e-08]
[1760502832902,1.98743562,112420.0,112410.0,1e-08]
[1760502833109,1.64479129,112420.0,112410.0,1e-08]
[1760502834417,1.65874564,112420.0,112410.0,1e-08]
[1760502835169,1.99874564,112420.0,112410.0,1e-08]
[1760502840130,2.00678894,112420.0,112410.0,1e-08]
[1760502840937,3.18404491,112420.0,112410.0,1e-08]
[1760502841146,2.80728452,112420.0,112410.0,1e-08]
[1760502842194,3.18404491,112420.0,112410.0,1e-08]
[1760502842397,2.80728452,112420.0,112410.0,1e-08]
[1760502842977,0.1779676,112380.0,112370.0,0.07065211]
[1760502843213,0.1945946,112380.0,112370.0,0.07115202]
[1760502843414,0.1945946,112380.0,112370.0,0.00281174]
[1760502843624,0.22137095,112380.0,112370.0,0.18079518]
[1760502843829,0.04340335,112380.0,112370.0,0.18079518]
[1760502844121,0.1945946,112380.0,112370.0,0.18079518]
[1760502844296,0.1945946,112380.0,112370.0,0.00281174]
[1760502844926,0.6945946,112380.0,112370.0,0.00281174]
[1760502845478,0.6945946,112380.0,112370.0,0.18079518]
[1760502846010,0.6945946,112380.0,112370.0,0.00281174]
[1760502846242,0.6945946,112380.0,112370.0,0.18079518]
[1760502846832,1.0345946,112380.0,112370.0,0.18079518]
[1760502847010,0.6945946,112380.0,112370.0,0.18079518]
[1760502847522,0.6779676,112380.0,112370.0,0.18079518]
[1760502847837,0.6779676,112380.0,112370.0,0.00281174]
[1760502848424,0.6779676,112380.0,112370.0,0.18079518]
[1760502848816,0.6779676,112380.0,112370.0,0.00281174]
[1760502849269,0.6779676,112380.0,112370.0,0.18079518]
[1760502849880,0.5,112380.0,112370.0,0.55755557]
[1760502850297,0.5,112380.0,112370.0,0.18079518]
[1760502853278,0.5,112380.0,112370.0,0.55755557]
[1760502856312,0.5,112380.0,112370.0,0.18079518]
[1760502857550,1.05472799,112380.0,112370.0,0.00281174]
[1760502858322,0.6779676,112380.0,112370.0,0.00281174]
[1760502858829,0.55472799,112380.0,112370.0,0.00281174]
[1760502859239,0.1779676,112380.0,112370.0,0.00281174]
[1760502859952,0.55472799,112380.0,112370.0,0.00281174]
[1760502860154,0.89472799,112380.0,112370.0,0.00281174]
[1760502860356,1.28817364,112380.0,112370.0,0.00281174]
[1760502860749,1.35113382,112380.0,112370.0,0.00281174]
[1760502861589,1.72941563,112380.0,112370.0,0.00281174]
[1760502862214,1.3521481,112380.0,112370.0,0.00281174]
[1760502862619,1.3531481,112380.0,112370.0,0.00281174]
[1760502863599,1.8531481,112380.0,112370.0,0.00281174]
[1760502864553,1.06241437,112380.0,112370.0,0.00281174]
[1760502864723,1.39623513,112380.0,112370.0,0.00281174]
[1760502864931,0.501,112380.0,112370.0,0.18079518]
[1760502865474,0.5,112380.0,112370.0,0.18079518]
[1760502865637,0.5,112380.0,112370.0,0.55806271]
[1760502867856,1.05523513,112380.0,112370.0,0.00281174]
[1760502868225,1.77250266,112380.0,112370.0,0.00281174]
[1760502868706,1.27250266,112380.0,112370.0,0.00281174]
[1760502868934,1.29928032,112380.0,112370.0,0.00281174]
[1760502869461,0.97333989,112380.0,112370.0,0.00281174]
[1760502869904,0.54474526,112380.0,112370.0,0.00281174]
[1760502870130,0.97333989,112380.0,112370.0,0.00281174]
[1760502870367,0.5179676,112380.0,112370.0,0.00281174]
[1760502871004,0.34,112380.0,112370.0,0.18079518]
[1760502871215,0.5179676,112380.0,112370.0,0.18079518]
[1760502871419,0.19191614,112390.0,112380.0,0.1779676]
[1760502871647,0.19191614,112390.0,112370.0,0.17848335]
[1760502871648,0.17795893,112390.0,112370.0,0.17848335]
[1760502871835,0.1805117,112380.0,112370.0,0.00049991]
[1760502872031,0.1779676,112380.0,112370.0,0.01829825]
[1760502872286,0.1779676,112380.0,112370.0,0.00049991]
[1760502872823,0.6779676,112380.0,112370.0,0.00049991]
[1760502872984,0.1779676,112380.0,112370.0,0.00049991]
[1760502873574,0.60656223,112380.0,112370.0,0.00049991]
[1760502873981,0.5179676,112380.0,112370.0,0.00049991]
[1760502876826,0.5179676,112380.0,112370.0,0.17848335]
[1760502877028,0.17795893,112390.0,112370.0,0.17848335]
[1760502877238,0.51795893,112390.0,112370.0,0.18079518]
[1760502877488,0.1779676,112380.0,112370.0,0.17848335]
[1760502878065,0.1779676,112380.0,112370.0,0.00049991]
[1760502878468,0.94656223,112380.0,112370.0,0.00049991]
[1760502878867,0.96051846,112380.0,112370.0,0.00049991]
[1760502879273,0.35395623,112380.0,112370.0,0.17848335]
[1760502879524,0.5179676,112380.0,112370.0,0.17848335]
[1760502879764,0.5179676,112380.0,112370.0,0.00049991]
[1760502879937,0.5179676,112380.0,112370.0,0.01829825]
[1760502880376,0.1779676,112380.0,112370.0,0.19628169]
[1760502880583,0.1779676,112380.0,112370.0,0.17848335]
[1760502881604,0.21867425,112400.0,112380.0,0.17795397]
[1760502881812,0.17794589,112400.0,112380.0,0.17795397]
[1760502882014,0.28536415,112410.0,112390.0,0.17795177]
[1760502882221,0.17793594,112400.0,112390.0,0.17795177]
[1760502883426,0.17795177,112390.0,112380.0,0.18858606]
[1760502884040,0.17795177,112390.0,112380.0,0.00173371]
[1760502884261,0.17795177,112390.0,112380.0,0.01953047]
[1760502885103,0.17795177,112390.0,112380.0,0.19749807]
[1760502885311,0.17795177,112390.0,112380.0,0.17970131]
[1760502887580,0.17795177,112390.0,112380.0,0.00173371]
[1760502888223,0.9465464,112390.0,112380.0,0.00173371]
[1760502888426,1.03622848,112390.0,112380.0,0.00173371]
[1760502888826,1.03979844,112390.0,112380.0,0.00173371]
[1760502889249,1.07598072,112390.0,112380.0,0.00173371]
[1760502889462,1.0926417,112390.0,112380.0,0.00173371]
[1760502889838,0.55770401,112390.0,112380.0,0.00173371]
[1760502890046,0.98629864,112390.0,112380.0,0.00173371]
[1760502890421,0.95011636,112390.0,112380.0,0.00173371]
[1760502890875,0.52152173,112390.0,112380.0,0.00173371]
[1760502891281,0.52252173,112390.0,112380.0,0.00173371]
[1760502891682,0.52152173,112390.0,112380.0,0.00173371]
[1760502893841,0.51795177,112390.0,112380.0,0.00173371]
[1760502895514,0.17795177,112390.0,112380.0,0.00173371]
[1760502897441,0.55493016,112390.0,112380.0,0.00173371]
[1760502898719,0.98461224,112390.0,112380.0,0.00173371]
[1760502899217,0.89493016,112390.0,112380.0,0.00173371]
[1760502899448,0.51795177,112390.0,112380.0,0.00173371]
[1760502900478,0.20079714,112410.0,112380.0,0.20639645]
[1760502900650,0.17794012,112400.0,112390.0,0.17795177]
[1760502901777,0.17793594,112400.0,112390.0,0.17795177]
[1760502903983,0.18684218,112410.0,112390.0,0.17795177]
[1760502904182,0.52684218,112410.0,112390.0,0.17795177]
[1760502905604,0.17793594,112400.0,112390.0,0.17795177]
[1760502906042,0.52684218,112410.0,112390.0,0.17795177]
[1760502906257,0.52684218,112410.0,112400.0,0.0005778]
[1760502908067,0.95518807,112410.0,112400.0,0.0005778]
[1760502911348,0.52684218,112410.0,112400.0,0.0005778]
[1760502914817,0.95518807,112410.0,112400.0,0.0005778]
[1760502920036,0.52684218,112410.0,112400.0,0.0005778]
[1760502920250,0.95518807,112410.0,112400.0,0.0005778]
[1760502920674,1.04487015,112410.0,112400.0,0.0005778]
[1760502920902,0.97186148,112410.0,112400.0,0.0005778]
[1760502921370,0.95518807,112410.0,112400.0,0.0005778]
[1760502921547,1.28083732,112410.0,112400.0,0.0005778]
[1760502923275,1.29751633,112410.0,112400.0,0.0005778]
[1760502923454,1.33369861,112410.0,112400.0,0.0005778]
[1760502923662,1.42338069,112410.0,112400.0,0.0005778]
[1760502924036,1.43172212,112410.0,112400.0,0.0005778]
[1760502924897,1.34204004,112410.0,112400.0,0.0005778]
[1760502926356,0.95670104,112410.0,112400.0,0.0005778]
[1760502927184,0.92051876,112410.0,112400.0,0.0005778]
[1760502927465,0.68684218,112410.0,112400.0,0.0005778]
[1760502928250,1.02684218,112410.0,112400.0,0.0005778]
[1760502932585,1.01792011,112410.0,112400.0,0.17851374]
[1760502933937,0.5,112410.0,112400.0,0.17851374]
[1760502934097,0.67792011,112410.0,112400.0,0.17851374]
[1760502934303,0.5,112410.0,112400.0,0.17851374]
[1760502934945,0.17790428,112420.0,112400.0,0.17851374]
[1760502935175,0.17792011,112410.0,112400.0,0.17851374]
[1760502939277,0.56985415,112430.0,112410.0,0.17792011]
[1760502939652,0.71918382,112450.0,112430.0,0.17788821]
[1760502939653,0.24966155,112450.0,112430.0,0.17788821]
[1760502939843,0.0025441,112440.0,112430.0,0.17788821]
[1760502939978,0.19007175,112460.0,112440.0,0.17786321]
[1760502940197,0.19007175,112460.0,112430.0,0.17788821]
[1760502940198,0.18040092,112450.0,112430.0,0.17788821]
[1760502940413,0.1778652,112450.0,112430.0,0.177938]
[1760502940628,0.1804093,112450.0,112430.0,0.177938]
[1760502941267,0.17785682,112450.0,112440.0,0.17787264]
[1760502941511,0.19007175,112460.0,112440.0,0.17787264]
[1760502941512,0.18110299,112460.0,112440.0,0.17787264]
[1760502941977,0.2031255,112460.0,112440.0,0.17787264]
[1760502942174,0.5431255,112460.0,112440.0,0.17787264]
[1760502942580,0.18040092,112450.0,112440.0,0.17787264]
[1760502942831,0.17785682,112450.0,112440.0,0.17787264]
[1760502943939,0.17787264,112440.0,112430.0,0.17793825]
[1760502944160,0.17785682,112450.0,112430.0,0.17793825]
[1760502944310,0.55201755,112460.0,112440.0,0.19521638]
[1760502944505,0.55201755,112460.0,112450.0,0.17785682]
[1760502944735,0.34326178,112460.0,112450.0,0.17785682]
[1760502944910,0.52110279,112460.0,112450.0,0.17785682]
[1760502945557,0.34326178,112460.0,112450.0,0.17785682]
[1760502945737,0.52110279,112460.0,112450.0,0.17785682]
[1760502945941,0.00326178,112460.0,112450.0,0.17785682]
[1760502946340,0.51791094,112480.0,112450.0,0.17785682]
[1760502946553,0.0025441,112470.0,112450.0,0.17785682]
[1760502946754,0.17784101,112460.0,112450.0,0.17785682]
[1760502948557,0.16030959,112480.0,112460.0,0.17784101]
[1760502948788,0.17782519,112470.0,112460.0,0.17784101]
[1760502948965,0.0005773,112470.0,112460.0,0.17784101]
[1760502950974,0.18094659,112470.0,112450.0,0.17785682]
[1760502951180,0.17840249,112470.0,112460.0,0.19562511]
[1760502951384,0.17840249,112470.0,112460.0,0.17784101]
[1760502952025,0.0005773,112470.0,112460.0,0.17784101]
[1760502952189,0.0031214,112470.0,112460.0,0.17784101]
[1760502953331,0.0005773,112470.0,112460.0,0.17784101]
[1760502953477,0.0005773,112470.0,112460.0,0.83583767]
[1760502953886,0.0005773,112470.0,112460.0,0.17784101]
[1760502954721,0.0005773,112470.0,112460.0,0.17884101]
[1760502956516,0.0005773,112470.0,112460.0,0.17784101]
[1760502956882,0.0005773,112470.0,112460.0,0.17884101]
[1760502963572,0.0005773,112470.0,112460.0,0.29080101]
[1760502963777,0.0005773,112470.0,112460.0,0.17884101]
[1760502964178,0.0005773,112470.0,112460.0,0.29080101]
[1760502964810,0.0005773,112470.0,112460.0,0.17884101]
[1760502965028,0.0005773,112470.0,112460.0,0.29080101]
[1760502968971,0.0005773,112470.0,112460.0,0.94879767]
[1760502969413,0.0005773,112470.0,112460.0,0.83683767]
[1760502969624,0.0005773,112470.0,112460.0,0.94879767]
[1760502969979,0.0005773,112470.0,112460.0,1.32497995]
[1760502970403,0.0005773,112470.0,112460.0,1.21301995]
[1760502970647,0.0005773,112470.0,112460.0,1.32397995]
[1760502970850,0.0005773,112470.0,112460.0,1.32497995]
[1760502971432,0.0005773,112470.0,112460.0,1.21301995]
[1760502971667,0.0005773,112470.0,112460.0,1.32497995]
[1760502972082,0.0005773,112470.0,112460.0,0.55502329]
[1760502972238,0.0005773,112470.0,112460.0,0.17884101]
[1760502972444,0.0005773,112470.0,112460.0,0.29080101]
[1760502973200,0.17841281,112470.0,112450.0,0.17785338]
[1760502973389,0.17784294,112460.0,112450.0,0.17785682]
[1760502973591,0.20280625,112460.0,112450.0,0.17785682]
[1760502973824,0.20280625,112460.0,112440.0,0.29872627]
[1760502974258,0.20280625,112460.0,112430.0,0.28081379]
[1760502974447,0.20280625,112460.0,112440.0,0.17787264]
[1760502974809,0.17785682,112450.0,112440.0,0.17787264]
[1760502975015,0.19449903,112450.0,112440.0,0.17787264]
[1760502977141,0.19449903,112450.0,112440.0,0.17887264]
[1760502979176,0.18673499,112460.0,112440.0,0.17887264]
[1760502979392,0.21171057,112460.0,112450.0,0.01778568]
[1760502979588,0.02497558,112460.0,112450.0,0.1956425]
[1760502979790,0.20281659,112460.0,112450.0,0.17785682]
[1760502980744,0.20281659,112460.0,112440.0,0.17787264]
[1760502980969,0.20281659,112460.0,112450.0,0.01778568]
[1760502981310,0.1778634,112450.0,112430.0,0.29879267]
[1760502981511,0.1778634,112450.0,112440.0,0.17787264]
[1760502981940,0.17784101,112460.0,112440.0,0.17787264]
[1760502982124,0.20281274,112460.0,112450.0,0.01778568]
[1760502983065,0.20281094,112460.0,112450.0,0.01778568]
[1760502984371,0.19448703,112460.0,112450.0,0.01778568]
[1760502985235,0.17784101,112460.0,112450.0,0.01778568]
[1760502989035,0.0005773,112470.0,112460.0,0.17784101]
[1760502989239,0.0005773,112470.0,112460.0,0.60567059]
[1760502989723,0.0005773,112470.0,112460.0,0.62461399]
[1760502990035,0.0005773,112470.0,112460.0,0.73657399]
[1760502992395,0.0005773,112470.0,112460.0,0.73757399]
[1760502993017,0.0005773,112470.0,112460.0,0.71863059]
[1760502993462,0.17840249,112470.0,112460.0,0.17884101]
[1760502993792,0.0005773,112470.0,112460.0,0.17884101]
[1760502994544,0.17840249,112470.0,112460.0,0.17884101]
[1760502995609,0.0005773,112470.0,112460.0,0.17784101]
[1760502995936,0.0005773,112470.0,112460.0,0.17884101]
[1760502996847,0.17840249,112470.0,112460.0,0.17884101]